[Event "ETCC Open 2013"]
[Site "Warsaw"]
[Date "2013.11.15"]
[Round "7"]
[White "Mamedyarov, Shakhriyar"]
[Black "Bacrot, Etienne"]
[Result "1/2-1/2"]
[ECO "E61"]
[WhiteElo "2757"]
[BlackElo "2749"]
[PlyCount "83"]
[EventDate "2013.??.??"]
[EventCountry "POL"]
[WhiteTeam "Azerbaijan"]
[BlackTeam "France"]
[WhiteTeamCountry "AZE"]
[BlackTeamCountry "FRA"]
[TimeControl "40/5400+30:1800+30"]

1. d4 {[%emt 0:00:00]} Nf6 {[%emt 0:00:00]} 2. c4 {[%emt 0:00:00]} g6 {[%emt 0:
00:00]} 3. Nc3 {[%emt 0:00:00]} Bg7 {[%emt 0:00:00]} 4. Nf3 {[%emt 0:00:00]}
O-O {[%emt 0:00:03]} 5. Bg5 {[%emt 0:00:01]} d6 {[%emt 0:08:11]} 6. Qd2 {[%emt
0:00:11]} Bf5 {[%emt 0:16:24]} 7. Bh6 {[%emt 0:00:17]} c5 {[%emt 0:06:41]} 8.
d5 {[%emt 0:00:56]} e5 {[%emt 0:06:46]} 9. Bxg7 {[%emt 0:01:43]} Kxg7 {[%emt 0:
02:04]} 10. Nh4 {[%emt 0:00:42]} Bd7 {[%emt 0:09:39]} 11. g3 {[%emt 0:00:08]}
Na6 {[%emt 0:11:17]} 12. e4 {[%emt 0:01:39]} Nc7 {[%emt 0:00:27]} 13. Bd3 {
[%emt 0:06:08]} a6 {[%emt 0:02:47]} 14. b3 {[%emt 0:02:24]} b5 {[%emt 0:02:33]}
15. O-O {[%emt 0:02:10]} Qe7 {[%emt 0:03:21]} 16. Nd1 {[%emt 0:02:51]} a5 {
[%emt 0:06:52]} 17. Ne3 {[%emt 0:00:59]} Rfb8 {[%emt 0:04:20]} 18. f4 {[%emt 0:
03:52]} a4 {[%emt 0:00:01]} 19. fxe5 {[%emt 0:06:57]} dxe5 {[%emt 0:00:54]} 20.
cxb5 {[%emt 0:04:29]} Nxb5 {[%emt 0:03:07]} 21. Bxb5 {[%emt 0:29:09]} Rxb5 {
[%emt 0:00:02]} 22. d6 {[%emt 0:02:28]} Qd8 {[%emt 0:00:01]} 23. Nc4 {[%emt 0:
04:13]} axb3 {[%emt 0:01:45]} 24. Nxe5 {[%emt 0:00:47]} Rxa2 {[%emt 0:04:19]}
25. Rxa2 {[%emt 0:04:59]} bxa2 {[%emt 0:00:02]} 26. Nxd7 {[%emt 0:00:30]} Rb1 {
[%emt 0:03:03]} 27. Qxa2 {[%emt 0:00:50]} Rxf1+ {[%emt 0:00:06]} 28. Kxf1 {
[%emt 0:00:02]} Nxd7 {[%emt 0:01:09]} 29. Ke2 {[%emt 0:02:39]} Qf6 {[%emt 0:01:
24]} 30. Qd2 {[%emt 0:00:12]} Qe6 {[%emt 0:02:35]} 31. Qd5 {[%emt 0:04:32]}
Qxd5 {[%emt 0:03:10]} 32. exd5 {[%emt 0:00:05]} Kf8 {[%emt 0:00:55]} 33. Nf3 {
[%emt 0:01:09]} Ke8 {[%emt 0:00:42]} 34. Kd3 {[%emt 0:00:19]} Nb6 {[%emt 0:00:
34]} 35. Ng5 {[%emt 0:00:28]} h6 {[%emt 0:00:34]} 36. Ne4 {[%emt 0:00:57]} Kd7
{[%emt 0:00:12]} 37. Nxc5+ {[%emt 0:00:10]} Kxd6 {[%emt 0:00:05]} 38. Kd4 {
[%emt 0:00:02]} Nxd5 {[%emt 0:00:35]} 39. Nb7+ {[%emt 0:00:28]} Ke6 {[%emt 0:
00:02]} 40. Nc5+ {[%emt 0:00:00]} Kd6 {[%emt 0:00:00]} 41. Nb7+ {[%emt 0:00:27]
} Ke6 {[%emt 0:00:06]} 42. Ke4 {Ke5+} 1/2-1/2